Workbook

Sheet Меню младшие 1-4 кл
B12: Согласовано | I12: Разработано и утвеждено
B13: Руководитель общеобразовательного учреждения | I13: Директор ООО "ФУДСОЦСЕРВИС"
B15: ________________/ Гатина С.А./ | I15: ________________Э.Р. Харламова
B20: Типовое меню
B21: Для организации бесплатного горячего питания (горячих завтраков) для обучающихся начальных классов
B22: МБОУ "Сарабикуловская ООШ" МО ЛМР РТ
B50: ТИПОВОЕ ДВУХНЕДЕЛЬНОЕ МЕНЮ ДЛЯ ОБУЧАЮЩИХСЯ В ОБЩЕОБРАЗОВАТЕЛЬНЫХ ОРГАНИЗАЦИЯХ С 1 по 4 КЛАССЫ
J51: сезон (осенне-зимний)
A52: № рецептуры | B52: Наименование блюд | C52: Выход,г | D52: Белки, г | E52: Жиры, г | F52: Углеводы, г | G52: Калорийность, ккал | H52: Витамин B1, мг | I52: Витамин С, мг | J52: Витамин А, мг | K52: Витамин Е, мг | L52: Ca, мг | M52: P, мг | N52: Mg, мг | O52: Fe, мг
B53: 1-ая неделя
B54: 1 день
A55: ТТК | B55: Салат из моркови с яблоками | C55: 60 | D55: 0.64 | E55: 3.01 | F55: 5.11 | G55: 50.91 | H55: 0.03 | I55: 2.63 | J55: 0.00 | K55: 0.21 | L55: 14.40 | M55: 26.72 | N55: 18.23 | O55: 0.64
A56: ТТК | B56: Котлета из мяса птицы | C56: 90 | D56: 10.20 | E56: 12.93 | F56: 13.79 | G56: 198.00 | H56: 0.09 | I56: 0.94 | J56: 46.26 | K56: 2.52 | L56: 77.83 | M56: 85.09 | N56: 18.72 | O56: 1.26
A57: № 203 Сбор.рец. На прод-ию для обуч. Во всех образ.учреж-Дели 2017 | B57: Макаронные изделия отварные с маслом сливочным | C57: 150/5 | D57: 5.70 | E57: 4.30 | F57: 31.99 | G57: 189.30 | H57: 0.06 | I57: 0.00 | J57: 20.00 | K57: 0.82 | L57: 12.39 | M57: 38.67 | N57: 8.62 | O57: 0.86
A58: №349 Сбор.рец. На прод-ию для обуч. Во всех образ.учреж-Дели 2017 | B58: Компот из сухофруктов (75С) | C58: 200 | D58: 0.66 | E58: 0.09 | F58: 22.03 | G58: 92.80 | H58: 0.02 | I58: 0.73 | J58: 0.00 | K58: 0.51 | L58: 32.18 | M58: 23.44 | N58: 17.46 | O58: 0.67
A59: Хим.состав и калорийность российских продуктов питания,табл 6, стр 144 , 2012 Дели + | B59: Хлеб ржаной | C59: 30 | D59: 1.98 | E59: 0.36 | F59: 11.88 | G59: 59.40 | H59: 0.05 | I59: 0.00 | J59: 0.00 | K59: 0.42 | L59: 8.70 | M59: 45.00 | N59: 14.10 | O59: 1.17
B60: Итого: | C60: 535 | D60: =SUM(D55:D59) -> 19.18 | E60: =SUM(E55:E59) -> 20.69 | F60: 84.80 | G60: 590.41 | H60: 0.25 | I60: 4.29 | J60: 66.26 | K60: 4.48 | L60: 145.49 | M60: 218.91 | N60: 77.13 | O60: 4.60 | P60: 25%
B62: 2 день
A63: Хим.состав и калорийность российских продуктов питания табл 9 стр 184 , 2012 Дели + | B63: Плоды и ягоды свежие (яблоки) | C63: 100 | D63: 0.40 | E63: 0.40 | F63: 9.80 | G63: 47.00 | H63: 0.03 | I63: 10.00 | K63: 0.20 | L63: 16.00 | M63: 11.00 | N63: 9.00 | O63: 2.20
A64: ТТК | B64: Сырники из творога с кашей молочной "Дружба" с маслом сливочным | C64: 60/150/5 | D64: 13.65 | E64: 15.29 | F64: 32.32 | G64: 330.90 | H64: 0.11 | I64: 0.88 | J64: 65.30 | K64: 1.83 | L64: 314.60 | M64: 252.49 | N64: 41.76 | O64: 1.01
A65: № 376 Сбор.рец. На прод-ию для обуч. Во всех образ.учреж-Дели 2017 | B65: Чай с сахаром | C65: 190/10 | D65: 0.07 | E65: 0.02 | F65: 10.01 | G65: 40.00 | H65: 0.00 | I65: 0.03 | J65: 0.00 | K65: 0.00 | L65: 10.95 | M65: 2.80 | N65: 1.40 | O65: 0.27
A66: Хим.состав и калорийность российских продуктов питания,табл 6, стр 144 , 2012 Дели + | B66: Хлеб ржаной | C66: 30 | D66: 1.98 | E66: 0.36 | F66: 11.88 | G66: 59.40 | H66: 0.05 | I66: 0.00 | J66: 0.00 | K66: 0.42 | L66: 8.70 | M66: 45.00 | N66: 14.10 | O66: 1.17
B67: Итого: | C67: 545 | D67: =SUM(D63:D66) -> 16.10 | E67: =SUM(E63:E66) -> 16.07 | F67: 64.01 | G67: 477.30 | H67: 0.19 | I67: 10.91 | J67: 65.30 | K67: 2.45 | L67: 350.25 | M67: 311.29 | N67: 66.26 | O67: 4.65 | P67: 20%
B70: 3 день
A71: № 15 Сбор.рец. На прод-ию для обуч. Во всех образ.учреж-Дели -2017 | B71: Сыр порционно | C71: 10 | D71: 2.63 | E71: 2.66 | F71: 0.00 | G71: 34.33 | H71: 0.00 | I71: 0.07 | J71: 21.00 | K71: 0.04 | L71: 100.00 | M71: 60.00 | N71: 5.50 | O71: 0.07
A72: № 260 Сбор.рец. На прод-ию для обуч. Во всех образ.учреж-Дели -2017 | B72: Гуляш из говядины | C72: 50/50 | D72: 10.39 | E72: 14.79 | F72: 10.30 | G72: 221.00 | H72: 0.03 | I72: 0.92 | K72: 2.61 | L72: 61.81 | M72: 154.15 | N72: 22.03 | O72: 3.06
A73: № 171 Сбор.рец. На прод-ию для обуч. Во всех образ.учреж-Дели 2017 | B73: Каша гречневая рассыпчатая | C73: 150 | D73: 3.77 | E73: 2.29 | F73: 39.72 | G73: 214.00 | H73: 0.21 | I73: 0.00 | J73: 0.00 | K73: 0.40 | L73: 23.99 | M73: 207.35 | N73: 140.52 | O73: 4.71
A74: № 377 Сбор.рец. На прод-ию для обуч. Во всех образ.учреж-Дели 2017 | B74: Чай с сахаром, с лимоном | C74: 185/10/5 | D74: 0.11 | E74: 0.02 | F74: 10.15 | G74: 41.32 | H74: -0.00 | I74: 2.03 | J74: 0.00 | K74: 0.01 | L74: 13.25 | M74: 3.96 | N74: 2.16 | O74: 0.33
A75: Хим.состав и калорийность российских продуктов питания табл 6 стр 134 , 2012 Дели + | B75: Хлеб ржаной | C75: 50 | D75: 3.30 | E75: 0.60 | F75: 19.80 | G75: 99.00 | H75: 0.09 | I75: 0.00 | J75: 0.00 | K75: 0.70 | L75: 14.50 | M75: 75.00 | N75: 23.50 | O75: 1.95
B76: Итого: | C76: 510 | D76: =SUM(D71:D75) -> 20.20 | E76: =SUM(E71:E75) -> 20.36 | F76: 79.97 | G76: 609.65 | H76: 0.33 | I76: 3.02 | J76: 21.00 | K76: 3.76 | L76: 213.55 | M76: 500.46 | N76: 193.71 | O76: 10.12 | P76: 25%
B83: 4 день
A84: ТТК Хим.состав и калорийность российских продуктов питания,табл 8, стр 168 , 2012 Дели +, | B84: Свекла отварная дольками | C84: 60 | D84: 1.08 | E84: 0.06 | F84: 5.88 | G84: 28.80 | H84: 0.01 | I84: 5.34 | J84: 0.00 | K84: 0.06 | L84: 27.00 | M84: 30.60 | N84: 15.60 | O84: 1.02
A85: ТТК | B85: Котлета из мяса птицы | C85: 90 | D85: 10.20 | E85: 12.93 | F85: 13.79 | G85: 198.00 | H85: 0.09 | I85: 0.94 | J85: 46.26 | K85: 2.52 | L85: 77.83 | M85: 85.09 | N85: 18.72 | O85: 1.26
A86: № 312 Сбор.рец. На прод-ию для обуч. Во всех образ.учреж-Дели -2017 | B86: Пюре картофельное с маслом сливочным | C86: 150/3 | D86: 3.08 | E86: 6.25 | F86: 20.47 | G86: 150.45 | H86: 0.14 | I86: 18.16 | J86: 8.00 | K86: 0.20 | L86: 37.46 | M86: 87.20 | N86: 27.75 | O86: 1.01
A87: № 376 Сбор.рец. На прод-ию для обуч. Во всех образ.учреж-Дели 2017 | B87: Чай с сахаром, с яблоком | C87: 180/10/10 | D87: 0.11 | E87: 0.06 | F87: 10.98 | G87: 44.70 | H87: 0.00 | I87: 1.03 | J87: 0.00 | K87: 0.02 | L87: 12.55 | M87: 3.90 | N87: 2.30 | O87: 0.48
A88: Хим.состав и калорийность российских продуктов питания табл 6 стр 134 , 2012 Дели + | B88: Хлеб пшеничный | C88: 30 | D88: 2.28 | E88: 0.24 | F88: 14.76 | G88: 70.50 | H88: 0.03 | I88: 0.00 | J88: 0.00 | K88: 0.33 | L88: 6.00 | M88: 19.50 | N88: 4.20 | O88: 0.33
A89: Хим.состав и калорийность российских продуктов питания,табл 6, стр 144 , 2012 Дели + | B89: Хлеб ржаной | C89: 40 | D89: =D75*0.8 -> 2.64 | E89: =E75*0.8 -> 0.48 | F89: 15.84 | G89: 79.20 | H89: 0.07 | I89: 0.00 | J89: 0.00 | K89: 0.56 | L89: 11.60 | M89: 60.00 | N89: 18.80 | O89: 1.56
B90: Итого: | C90: 573 | D90: =SUM(D84:D89) -> 19.39 | E90: =SUM(E84:E89) -> 20.02 | F90: 81.72 | G90: 571.65 | H90: 0.34 | I90: 25.47 | J90: 54.26 | K90: 3.69 | L90: 172.43 | M90: 286.28 | N90: 87.37 | O90: 5.66 | P90: 25%
B92: 5 день
A93: № 15 Сбор.рец. На прод-ию для обуч. Во всех образ.учреж-Дели 2017 | B93: Сыр порционно | C93: 15 | D93: 3.95 | E93: 3.99 | F93: 0.00 | G93: 51.50 | H93: 0.01 | I93: 0.11 | J93: 31.50 | K93: 0.06 | L93: 150.00 | M93: 90.00 | N93: 8.25 | O93: 0.11
A94: №279,331 Сбор.рец. На прод-ию для питания детей в дошк образоват учрежд-Дели 2017 | B94: Тефтели мясные в сметанно-томатном соусе | C94: 60/40 | D94: 7.284 | E94: 11.940 | F94: 8.360 | G94: 124 | H94: 0.048 | I94: 0.276 | J94: 29.620 | K94: 0.421 | L94: 20.726 | M94: 80.202 | N94: 15.521 | O94: 0.640
A95: № 203 Сбор.рец. На прод-ию для обуч. Во всех образ.учреж-Дели 2017 | B95: Макаронные изделия отварные с маслом сливочным | C95: 180/5 | D95: 5.10 | E95: 3.62 | F95: 31.96 | G95: 176.10 | H95: 0.06 | I95: 0.00 | J95: 12.00 | K95: 0.80 | L95: 11.91 | M95: 38.07 | N95: 8.62 | O95: 0.86
A96: ТТК | B96: Напиток из свежих фруктов (75С) | C96: 200 | D96: 0.34 | E96: 0.17 | F96: 21.46 | G96: 103.50 | H96: 0.02 | I96: 3.17 | J96: 0.00 | K96: 0.13 | L96: 16.67 | M96: 7.05 | N96: 7.78 | O96: 0.88
A97: Хим.состав и калорийность российских продуктов питания табл 6 стр 134 , 2012 Дели + | B97: Хлеб пшеничный | C97: 45 | D97: =D88*1.5 -> 3.42 | E97: =E88*1.5 -> 0.36 | F97: 22.14 | G97: 105.75 | H97: 0.05 | I97: 0.00 | J97: 0.00 | K97: 0.50 | L97: 9.00 | M97: 29.25 | N97: 6.30 | O97: 0.50
B98: Итого: | C98: 545 | D98: =SUM(D93:D97) -> 20.09 | E98: =SUM(E93:E97) -> 20.08 | F98: 83.92 | G98: 560.84 | H98: 0.18 | I98: 3.55 | J98: 73.12 | K98: 1.91 | L98: 208.31 | M98: 244.57 | N98: 46.47 | O98: 2.98 | P98: 25%
B100: 6 день
A101: № 47 Сбор.рец. На прод-ию для обуч. Во всех образ.учреж-Дели -2017 | B101: Салат из свежей капусты с морковью | C101: 80 | D101: 1.05 | E101: 2.60 | F101: 5.17 | G101: 48.32 | H101: 0.02 | I101: 13.68 | J101: 0.00 | K101: 6.71 | L101: 19.98 | M101: 22.65 | N101: 12.07 | O101: 0.37
A102: № 234 Сбор.рец. На прод-ию для обуч. Во всех образ.учреж-Дели 2015 | B102: Биточки рыбные | C102: 90 | D102: 13.17 | E102: 10.70 | F102: 15.79 | G102: 193.30 | H102: 0.09 | I102: 0.94 | J102: 46.26 | K102: 2.52 | L102: 77.83 | M102: 85.09 | N102: 18.72 | O102: 1.26
A103: № 302 Сбор.рец. На прод-ию для обуч. Во всех образ.учреж-Дели 2015 | B103: Рис отварной рассыпчатый с маслом сливочным | C103: 150/3 | D103: 3.63 | E103: 6.50 | F103: 37.58 | G103: 223.35 | H103: 0.03 | I103: 0.00 | J103: 12.00 | K103: 0.29 | L103: 6.03 | M103: 78.81 | N103: 25.46 | O103: 0.53
A104: № 377 Сбор.рец. На прод-ию для обуч. Во всех образ.учреж-Дели 2017 | B104: Чай с сахаром, с лимоном | C104: 185/10/5 | D104: 0.11 | E104: 0.02 | F104: 10.15 | G104: 41.32 | H104: -0.00 | I104: 2.03 | J104: 0.00 | K104: 0.01 | L104: 13.25 | M104: 3.96 | N104: 2.16 | O104: 0.33
A105: Хим.состав и калорийность российских продуктов питания,табл 6, стр 144 , 2012 Дели + | B105: Хлеб ржаной | C105: 30 | D105: 1.98 | E105: 0.36 | F105: 11.88 | G105: 59.40 | H105: 0.05 | I105: 0.00 | J105: 0.00 | K105: 0.42 | L105: 8.70 | M105: 45.00 | N105: 14.10 | O105: 1.17
B106: Итого: | C106: 553 | D106: =SUM(D101:D105) -> 19.94 | E106: =SUM(E101:E105) -> 20.18 | F106: 80.57 | G106: =SUM(G101:G105) -> 565.69 | H106: 0.19 | I106: 16.64 | J106: 58.26 | K106: 9.95 | L106: 125.78 | M106: 235.50 | N106: 72.51 | O106: 3.66 | P106: 25%
B107: Итого за 6 дней 1 недели: | C107: =C60+C67+C76+C90+C98+C106 -> 3261 | D107: =D60+D67+D76+D90+D98+D106 -> 114.8961 | E107: 117.3977 | F107: 474.9913 | G107: 3375.543333 | H107: 1.480433333 | I107: 63.8771 | J107: 338.2 | K107: 26.228 | L107: 1215.807 | M107: 1797.0089 | N107: 543.4528 | O107: 31.67
B119: 2-ая неделя
B120: 1 день
A121: ТТК | B121: Сырники из творога с кашей пшенной молочной с маслом сливочным | C121: 60/180/5 | D121: 16.02 | E121: 18.13 | F121: 42.98 | G121: 386.40 | H121: 0.13 | I121: 1.02 | J121: 67.52 | K121: 1.84 | L121: 344.24 | M121: 275.54 | N121: 47.35 | O121: 1.13
A122: № 376 Сбор.рец. На прод-ию для обуч. Во всех образ.учреж-Дели 2017 | B122: Чай "Витаминный" с шиповником | C122: 185/10/5 | D122: 0.24 | E122: 0.09 | F122: 12.43 | G122: 54.20 | H122: 0.00 | I122: 50.03 | J122: 0.00 | K122: 0.19 | L122: 13.95 | M122: 3.65 | N122: 2.25 | O122: 0.42
A123: Хим.состав и калорийность российских продуктов питания табл 6 стр 134 , 2012 Дели + | B123: Хлеб пшеничный | C123: 25 | D123: 1.90 | E123: 0.20 | F123: 12.30 | G123: 58.75 | H123: 0.03 | I123: 0.00 | J123: 0.00 | K123: 0.28 | L123: 5.00 | M123: 16.25 | N123: 3.50 | O123: 0.28
A124: Хим.состав и калорийность российских продуктов питания,табл 6, стр 144 , 2012 Дели + | B124: Хлеб ржаной | C124: 30 | D124: 1.98 | E124: 0.36 | F124: 11.88 | G124: 59.40 | H124: 0.05 | I124: 0.00 | J124: 0.00 | K124: 0.42 | L124: 8.70 | M124: 45.00 | N124: 14.10 | O124: 1.17
B125: Итого: | C125: 500 | D125: =SUM(D121:D124) -> 20.14 | E125: =SUM(E121:E124) -> 18.78 | F125: 79.59 | G125: 558.75 | H125: 0.21 | I125: 51.05 | J125: 67.52 | K125: 2.72 | L125: 371.89 | M125: 340.44 | N125: 67.20 | O125: 2.99 | P125: 25%
B127: 2 день
A128: Хим.состав и калорийность российских продуктов питания табл 9 стр 184 , 2012 Дели + | B128: Плоды и ягоды свежие (яблоки) | C128: 100 | D128: 0.40 | E128: 0.40 | F128: 9.80 | G128: 47.00 | H128: 0.03 | I128: 10.00 | K128: 0.20 | L128: 16.00 | M128: 11.00 | N128: 9.00 | O128: 2.20
A129: № 265 Сбор.рец. На прод-ию для обуч. Во всех образ.учреж-Дели -2017 | B129: Плов из говядины с рисовой крупой | C129: 50/150 | D129: 15.95 | E129: 19.55 | F129: 39.75 | G129: 408.42 | H129: 0.04 | I129: 0.27 | J129: 0.00 | K129: 4.23 | L129: 89.33 | M129: 176.23 | N129: 40.58 | O129: 2.64
A130: № 376 Сбор.рец. На прод-ию для обуч. Во всех образ.учреж-Дели 2017 | B130: Чай с сахаром | C130: 190/10 | D130: 0.07 | E130: 0.02 | F130: 10.01 | G130: 40.00 | H130: 0.00 | I130: 0.03 | J130: 0.00 | K130: 0.00 | L130: 10.95 | M130: 2.80 | N130: 1.40 | O130: 0.27
A131: Хим.состав и калорийность российских продуктов питания табл 6 стр 134 , 2012 Дели + | B131: Хлеб пшеничный | C131: 25 | D131: 1.90 | E131: 0.20 | F131: 12.30 | G131: 58.75 | H131: 0.03 | I131: 0.00 | J131: 0.00 | K131: 0.28 | L131: 5.00 | M131: 16.25 | N131: 3.50 | O131: 0.28
A132: Хим.состав и калорийность российских продуктов питания,табл 6, стр 144 , 2012 Дели + | B132: Хлеб ржаной | C132: 20 | D132: 1.32 | E132: 0.24 | F132: 7.92 | G132: 39.60 | H132: 0.03 | I132: 0.00 | J132: 0.00 | K132: 0.28 | L132: 5.80 | M132: 30.00 | N132: 9.40 | O132: 0.78
B133: Итого: | C133: 545 | D133: =SUM(D128:D132) -> 19.64 | E133: =SUM(E128:E132) -> 20.41 | F133: 79.78 | G133: 593.77 | H133: 0.13 | I133: 10.30 | J133: 0.00 | K133: 4.98 | L133: 127.08 | M133: 236.28 | N133: 63.88 | O133: 6.16 | P133: 25%
B135: 3 день
A136: № 52 Сбор.рец. На прод-ию для обуч. Во всех образ.учреж-Дели -2017 | B136: Салат из отварной свеклы | C136: 60 | D136: 0.84 | E136: 3.61 | F136: 4.96 | G136: 55.68 | H136: 0.01 | I136: 3.99 | J136: 0.00 | K136: 1.62 | L136: 21.28 | M136: 24.38 | N136: 12.42 | O136: 0.79
A137: № 229 Сбор.рец. На прод-ию для обуч. Во всех образ.учреж-Дели 2017 | B137: Рыба, тушенная в томате с овощами | C137: 50/50 | D137: 9.05 | E137: 6.09 | F137: 3.80 | G137: 105.00 | H137: 0.05 | I137: 3.73 | J137: 5.82 | K137: 2.52 | L137: 69.07 | M137: 162.19 | N137: 48.53 | O137: 0.85
A138: № 312 Сбор.рец. На прод-ию для обуч. Во всех образ.учреж-Дели -2017 | B138: Пюре картофельное с маслом сливочным | C138: 150/3 | D138: 3.08 | E138: 6.25 | F138: 20.47 | G138: 150.45 | H138: 0.14 | I138: 18.16 | J138: 8.00 | K138: 0.20 | L138: 37.46 | M138: 87.20 | N138: 27.75 | O138: 1.01
A139: №342 Сбор.рец. На прод-ию для обуч. Во всех образ.учреж-Дели 2017 | B139: Компот из свежих яблок (75С) | C139: 200 | D139: 0.16 | E139: 0.16 | F139: 17.90 | G139: 74.60 | H139: 0.01 | I139: 0.90 | J139: 0.00 | K139: 0.08 | L139: 13.88 | M139: 4.40 | N139: 5.14 | O139: 0.92
A140: Хим.состав и калорийность российских продуктов питания табл 6 стр 134 , 2012 Дели + | B140: Хлеб пшеничный | C140: 35 | D140: 2.66 | E140: 0.28 | F140: 17.22 | G140: 82.25 | H140: 0.04 | I140: 0.00 | J140: 0.00 | K140: 0.39 | L140: 7.00 | M140: 22.75 | N140: 4.90 | O140: 0.39
B141: Итого: | C141: 548 | D141: =SUM(D136:D140) -> 15.79 | E141: =SUM(E136:E140) -> 16.39 | F141: 64.34 | G141: 467.98 | H141: 0.25 | I141: 26.78 | J141: 13.82 | K141: 4.81 | L141: 148.68 | M141: 300.91 | N141: 98.74 | O141: 3.96 | P141: 20%
B148: 4 день
A149: ТТК | B149: Тефтели куриные с гречневой крупой в сметанно-томатном соусе | C149: 60/40 | D149: 3.17 | E149: 5.19 | F149: 9.85 | G149: 118.01 | H149: 0.07 | I149: 0.28 | J149: 29.62 | K149: 0.46 | L149: 61.68 | M149: 92.80 | N149: 26.56 | O149: 1.04
A150: № 203 Сбор.рец. На прод-ию для обуч. Во всех образ.учреж-Дели 2017 | B150: Макаронные изделия отварные с маслом сливочным | C150: 180/3 | D150: 6.64 | E150: 7.60 | F150: 31.78 | G150: 221.94 | H150: 0.07 | I150: 0.00 | J150: 12.00 | K150: 1.19 | L150: 6.55 | M150: 45.50 | N150: 25.34 | O150: 1.33
A151: № 382 Сбор.рец. На прод-ию для обуч. Во всех образ.учреж-Дели 2017 | B151: Какао с молоком | C151: 200 | D151: 4.08 | E151: 3.54 | F151: 7.60 | G151: 78.60 | H151: 0.06 | I151: 1.59 | J151: 24.40 | K151: 0.00 | L151: 151.92 | M151: 124.56 | N151: 21.34 | O151: 0.45
A152: Хим.состав и калорийность российских продуктов питания табл 6 стр 134 , 2012 Дели + | B152: Хлеб пшеничный | C152: 30 | D152: 2.28 | E152: 0.24 | F152: 14.76 | G152: 70.50 | H152: 0.03 | I152: 0.00 | J152: 0.00 | K152: 0.33 | L152: 6.00 | M152: 19.50 | N152: 4.20 | O152: 0.33
B153: Итого: | C153: 513 | D153: =D149+D150+D151+D152 -> 16.17 | E153: =E149+E150+E151+E152 -> 16.57 | F153: 63.98 | G153: 489.05 | H153: 0.22 | I153: 1.86 | J153: 66.02 | K153: 1.98 | L153: 226.15 | M153: 282.37 | N153: 77.44 | O153: 3.15 | P153: 20%
B155: 5 день
A156: Хим.состав и калорийность российских продуктов питания табл 9 стр 184 , 2012 Дели + | B156: Плоды и ягоды свежие (яблоки) | C156: 100 | D156: 0.40 | E156: 0.40 | F156: 9.80 | G156: 47.00 | H156: 0.03 | I156: 10.00 | K156: 0.20 | L156: 16.00 | M156: 11.00 | N156: 9.00 | O156: 2.20
A157: № 143,241 Сбор.рец. На прод-ию для обуч. Во всех образ.учреж-Дели 2017 | B157: Овощи тушеные с мясом | C157: 50/150 | D157: 12.48 | E157: 15.68 | F157: 19.34 | G157: 271.50 | H157: 0.12 | I157: 18.77 | J157: 39.00 | K157: 4.67 | L157: 89.15 | M157: 148.63 | N157: 39.69 | O157: 2.23
A158: №349 Сбор.рец. На прод-ию для обуч. Во всех образ.учреж-Дели 2017 | B158: Компот из сухофруктов (75С) | C158: 200 | D158: 0.66 | E158: 0.09 | F158: 22.03 | G158: 92.80 | H158: 0.02 | I158: 0.73 | J158: 0.00 | K158: 0.51 | L158: 32.18 | M158: 23.44 | N158: 17.46 | O158: 0.67
A159: Хим.состав и калорийность российских продуктов питания табл 6 стр 134 , 2012 Дели + | B159: Хлеб пшеничный | C159: 30 | D159: 2.28 | E159: 0.24 | F159: 14.76 | G159: 70.50 | H159: 0.03 | I159: 0.00 | J159: 0.00 | K159: 0.33 | L159: 6.00 | M159: 19.50 | N159: 4.20 | O159: 0.33
B160: Итого: | C160: 530 | D160: =SUM(D156:D159) -> 15.82 | E160: =SUM(E156:E159) -> 16.41 | F160: 65.93 | G160: 481.80 | H160: 0.20 | I160: 29.49 | J160: 39.00 | K160: 5.71 | L160: 143.33 | M160: 202.57 | N160: 70.35 | O160: 5.42 | P160: 20%
B162: 6 день
A163: № 47 Сбор.рец. На прод-ию для обуч. Во всех образ.учреж-Дели -2017 | B163: Салат из свежей капусты с морковью | C163: 80 | D163: 1.05 | E163: 2.60 | F163: 5.17 | G163: 48.32 | H163: 0.02 | I163: 13.68 | J163: 0.00 | K163: 6.71 | L163: 19.98 | M163: 22.65 | N163: 12.07 | O163: 0.37
A164: ТТК | B164: Котлеты "Аппетитные" | C164: 90 | D164: 12.90 | E164: 12.15 | F164: 13.15 | G164: 214.20 | H164: 0.12 | I164: 0.41 | J164: 6.21 | K164: 32.29 | L164: 60.51 | M164: 109.69 | N164: 23.76 | O164: 2.83
A165: № 171 Сбор.рец. На прод-ию для обуч. Во всех образ.учреж-Дели 2017 | B165: Каша гречневая рассыпчатая с маслом сливочным | C165: 150/3 | D165: 3.79 | E165: 4.47 | F165: 39.76 | G165: 233.80 | H165: 0.21 | I165: 0.00 | J165: 0.00 | K165: 0.40 | L165: 24.89 | M165: 208.07 | N165: 140.52 | O165: 4.78
A166: № 377 Сбор.рец. На прод-ию для обуч. Во всех образ.учреж-Дели 2017 | B166: Чай с сахаром, с лимоном | C166: 185/10/5 | D166: 0.11 | E166: 0.02 | F166: 10.15 | G166: 41.32 | H166: -0.00 | I166: 2.03 | J166: 0.00 | K166: 0.01 | L166: 13.25 | M166: 3.96 | N166: 2.16 | O166: 0.33
A167: Хим.состав и калорийность российских продуктов питания табл 6 стр 134 , 2012 Дели + | B167: Хлеб пшеничный | C167: 30 | D167: 2.28 | E167: 0.24 | F167: 14.76 | G167: 70.50 | H167: 0.03 | I167: 0.00 | J167: 0.00 | K167: 0.33 | L167: 6.00 | M167: 19.50 | N167: 4.20 | O167: 0.33
B168: Итого: | C168: 553 | D168: =SUM(D163:D167) -> 20.14 | E168: =SUM(E163:E167) -> 19.48 | F168: 82.99 | G168: 608.14 | H168: 0.38 | I168: 16.11 | J168: 6.21 | K168: 39.74 | L168: 124.63 | M168: 363.87 | N168: 182.71 | O168: 8.64 | P168: 25%
B169: Итого за 6 дней 2 недели: | C169: =C125+C133+C141+C153+C160+C168 -> 3189 | D169: =D125+D133+D141+D153+D160+D168 -> 107.6871333 | E169: 108.0389 | F169: 436.6061 | G169: 3199.486667 | H169: 1.386816667 | I169: 135.5941 | J169: 192.57 | K169: 59.93545 | L169: 1141.757867 | M169: 1726.441633 | N169: 560.3211333 | O169: 30.33526667
B170: ВСЕГО за 12 дней: | C170: =C107+C169 -> 6450 | D170: =D107+D169 -> 222.5832333 | E170: 225.4366 | F170: 911.5974 | G170: 6575.03 | H170: 2.86725 | I170: 199.4712 | J170: 530.77 | K170: 86.16345 | L170: 2357.564867 | M170: 3523.450533 | N170: 1103.773933 | O170: 62.00526667
B171: В среднем на 1 учащегося в день: | C171: =C170/12 -> 538 | D171: =D170/12 -> 18.55 | E171: 18.79 | F171: 75.97 | G171: 547.92 | H171: 0.24 | I171: 16.62 | J171: 44.23 | K171: 7.18 | L171: 196.46 | M171: 293.62 | N171: 91.98 | O171: 5.17 | P171: 20-25%

Sheet Меню старшие 5-11 кл
B12: Согласовано | I12: Разработано и утвеждено
B13: Руководитель общеобразовательного учреждения | I13: Директор ООО "ФУДСОЦСЕРВИС"
B15: _______________Зайнутдинова Г.Р. | I15: ________________Э.Р. Харламова
B20: ТИПОВОЕ МЕНЮ
B21: Для организации питания обучающихся МБОУ "Сарабикуловскаяская ООШ" МО ЛМР РТ
B22: в возрасте с 12 лет и старше (5-11 классы)
B49: ПРИМЕРНОЕ ДВУХНЕДЕЛЬНОЕ МЕНЮ ДЛЯ ОБУЧАЮЩИХСЯ В ОБЩЕОБРАЗОВАТЕЛЬНЫХ ОРГАНИЗАЦИЯХ С 5 по 11 КЛАССЫ
B50: (общеобразовательные организации с режимом обучения до 6 часов)
A52: № рецептуры | B52: Наименование блюд | C52: Выход,г | D52: Белки, г | E52: Жиры, г | F52: Углеводы, г | G52: Калорийность, ккал | H52: Витамин B1, мг | I52: Витамин С, мг | J52: Витамин А, мг | K52: Витамин Е, мг | L52: Ca, мг | M52: P, мг | N52: Mg, мг | O52: Fe, мг
B53: 1-ая неделя
B54: 1 день
A55: ТТК | B55: Салат из моркови с яблоками | C55: 100 | D55: 1.06 | E55: 4.22 | F55: 8.52 | G55: 84.85 | H55: 0.05 | I55: 4.38 | J55: 0.00 | K55: 0.35 | L55: 23.99 | M55: 44.53 | N55: 30.39 | O55: 1.07
A56: ТТК | B56: Котлеты из мяса птицы с макаронными изделиями отварными, с маслом сливочным | C56: 90/150/5 | D56: 15.90 | E56: 19.23 | F56: 45.78 | G56: 387.30 | H56: 0.15 | I56: 0.94 | J56: 66.26 | K56: 3.34 | L56: 60.22 | M56: 123.75 | N56: 27.34 | O56: 2.12
A57: №349 Сбор.рец. На прод-ию для обуч. Во всех образ.учреж-Дели 2017 | B57: Компот из сухофруктов (75С) | C57: 200 | D57: 0.66 | E57: 0.09 | F57: 22.03 | G57: 92.80 | H57: 0.02 | I57: 0.73 | J57: 0.00 | K57: 0.51 | L57: 32.18 | M57: 23.44 | N57: 17.46 | O57: 0.67
A58: Хим.состав и калорийность российских продуктов питания табл 6 стр 134 , 2012 Дели + | B58: Хлеб пшеничный | C58: 25 | D58: 1.90 | E58: 0.20 | F58: 12.30 | G58: 58.75 | H58: 0.03 | I58: 0.00 | J58: 0.00 | K58: 0.28 | L58: 5.00 | M58: 16.25 | N58: 3.50 | O58: 0.28
A59: Хим.состав и калорийность российских продуктов питания,табл 6, стр 144 , 2012 Дели + | B59: Хлеб ржаной | C59: 30 | D59: 1.98 | E59: 0.36 | F59: 11.88 | G59: 59.40 | H59: 0.05 | I59: 0.00 | J59: 0.00 | K59: 0.42 | L59: 8.70 | M59: 45.00 | N59: 14.10 | O59: 1.17
B60: Итого: | C60: 600 | D60: =SUM(D55:D59) -> 21.50 | E60: =SUM(E55:E59) -> 24.10 | F60: 100.51 | G60: 683.10 | H60: 0.29 | I60: 6.04 | J60: 66.26 | K60: 4.89 | L60: 130.09 | M60: 252.97 | N60: 92.78 | O60: 5.30 | P60: =#REF!+#REF!+#REF!+P57+P58+P59 ->  | Q60: =#REF!+#REF!+#REF!+Q57+Q58+Q59 ->  | R60: 25%
B63: 2 день
A64: Хим.состав и калорийность российских продуктов питания табл 9 стр 184 , 2012 Дели + | B64: Плоды и ягоды свежие (яблоки) | C64: 100 | D64: 0.40 | E64: 0.40 | F64: 9.80 | G64: 47.00 | H64: 0.03 | I64: 10.00 | K64: 0.20 | L64: 16.00 | M64: 11.00 | N64: 9.00 | O64: 2.20
A65: ТТК | B65: Сырники из творога с кашей молочной "Дружба" с маслом сливочным | C65: 60/180/3 | D65: 15.70 | E65: 16.83 | F65: 41.19 | G65: 376.80 | H65: 0.13 | I65: 1.02 | J65: 59.52 | K65: 1.82 | L65: 213.76 | M65: 274.94 | N65: 47.35 | O65: 1.13
A66: № 376 Сбор.рец. На прод-ию для обуч. Во всех образ.учреж-Дели 2017 | B66: Чай с сахаром | C66: 190/10 | D66: 0.07 | E66: 0.02 | F66: 10.01 | G66: 40.00 | H66: 0.00 | I66: 0.03 | J66: 0.00 | K66: 0.00 | L66: 10.95 | M66: 2.80 | N66: 1.40 | O66: 0.27
A67: Хим.состав и калорийность российских продуктов питания,табл 6, стр 144 , 2012 Дели + | B67: Хлеб ржаной | C67: 30 | D67: 1.98 | E67: 0.36 | F67: 11.88 | G67: 59.40 | H67: 0.05 | I67: 0.00 | J67: 0.00 | K67: 0.42 | L67: 8.70 | M67: 45.00 | N67: 14.10 | O67: 1.17
B68: Итого: | C68: 573 | D68: =SUM(D64:D67) -> 18.15 | E68: 17.61 | F68: 72.88 | G68: 523.20 | H68: 0.21 | I68: 11.05 | J68: 59.52 | K68: 2.44 | L68: 249.41 | M68: 333.74 | N68: 71.85 | O68: 4.76 | P68: 25% | Q68: 25% | R68: 20%
B70: 3 день
A71: № 15 Сбор.рец. На прод-ию для обуч. Во всех образ.учреж-Дели -2017 | B71: Сыр порционно | C71: 10 | D71: 2.63 | E71: 2.66 | F71: 0.00 | G71: 34.33 | H71: 0.00 | I71: 0.07 | J71: 21.00 | K71: 0.04 | L71: 100.00 | M71: 60.00 | N71: 5.50 | O71: 0.07
A72: № 260 Сбор.рец. На прод-ию для обуч. Во всех образ.учреж-Дели -2017 | B72: Гуляш из говядины | C72: 50/50 | D72: 10.39 | E72: 14.79 | F72: 10.30 | G72: 221.00 | H72: 0.03 | I72: 0.92 | K72: 2.61 | L72: 61.81 | M72: 154.15 | N72: 22.03 | O72: 3.06
A73: № 302 Сбор.рец. На прод-ию для обуч. Во всех образ.учреж-Дели 2017 | B73: Каша гречневая рассыпчатая | C73: 180 | D73: 4.52 | E73: 3.75 | F73: 47.66 | G73: 256.80 | H73: 0.25 | I73: 0.00 | J73: 0.00 | K73: 0.48 | L73: 28.79 | M73: 248.82 | N73: 168.62 | O73: 5.65 | P73: 0 | Q73: 0
A74: № 377 Сбор.рец. На прод-ию для обуч. Во всех образ.учреж-Дели 2017 | B74: Чай с сахаром, с лимоном | C74: 185/10/5 | D74: 0.11 | E74: 0.02 | F74: 10.15 | G74: 41.32 | H74: -0.00 | I74: 2.03 | J74: 0.00 | K74: 0.01 | L74: 13.25 | M74: 3.96 | N74: 2.16 | O74: 0.33
A75: Хим.состав и калорийность российских продуктов питания табл 6 стр 134 , 2012 Дели + | B75: Хлеб пшеничный | C75: 20 | D75: 1.52 | E75: 0.16 | F75: 9.84 | G75: 47.00 | H75: 0.02 | I75: 0.00 | J75: 0.00 | K75: 0.22 | L75: 4.00 | M75: 13.00 | N75: 2.80 | O75: 0.22
A76: Хим.состав и калорийность российских продуктов питания,табл 6, стр 144 , 2012 Дели + | B76: Хлеб ржаной | C76: 40 | D76: 2.64 | E76: 0.48 | F76: 15.84 | G76: 79.20 | H76: 0.07 | I76: 0.00 | J76: 0.00 | K76: 0.56 | L76: 11.60 | M76: 60.00 | N76: 18.80 | O76: 1.56
B77: Итого: | C77: 550 | D77: =SUM(D71:D76) -> 21.82 | E77: =SUM(E71:E76) -> 21.86 | F77: 93.79 | G77: 679.65 | H77: 0.37 | I77: 3.02 | J77: 21.00 | K77: 3.92 | L77: 219.45 | M77: 539.93 | N77: 219.91 | O77: 10.90 | P77: 25% | Q77: 25% | R77: 25%
P79: =P73/0.9 -> 0.00 | Q79: =Q73/0.9 -> 0.00
B82: 4 день
A83: ТТК Хим.состав и калорийность российских продуктов питания,табл 8, стр 168 , 2012 Дели +, | B83: Свекла отварная дольками | C83: 100 | D83: 1.80 | E83: 0.10 | F83: 9.80 | G83: 48.00 | H83: 0.02 | I83: 8.90 | J83: 0.00 | K83: 0.10 | L83: 45.00 | M83: 51.00 | N83: 26.00 | O83: 1.70 | P83: 0 | Q83: 0
A84: ТТК | B84: Котлета из мяса птицы с картофельное пюре, с маслом сливочным | C84: 90/150/3 | D84: 13.28 | E84: 18.58 | F84: 34.26 | G84: 348.45 | H84: 0.23 | I84: 19.10 | J84: 54.26 | K84: 2.72 | L84: 115.28 | M84: 172.28 | N84: 46.47 | O84: 2.27
A85: № 376 Сбор.рец. На прод-ию для обуч. Во всех образ.учреж-Дели 2017 | B85: Чай с сахаром, с яблоком | C85: 180/10/10 | D85: 0.11 | E85: 0.06 | F85: 10.98 | G85: 44.70 | H85: 0.00 | I85: 1.03 | J85: 0.00 | K85: 0.02 | L85: 12.55 | M85: 3.90 | N85: 2.30 | O85: 0.48
A86: Хим.состав и калорийность российских продуктов питания табл 6 стр 134 , 2012 Дели + | B86: Хлеб пшеничный | C86: 20 | D86: 1.52 | E86: 0.16 | F86: 9.84 | G86: 47.00 | H86: 0.02 | I86: 0.00 | J86: 0.00 | K86: 0.22 | L86: 4.00 | M86: 13.00 | N86: 2.80 | O86: 0.22
A87: Хим.состав и калорийность российских продуктов питания,табл 6, стр 144 , 2012 Дели + | B87: Хлеб ржаной | C87: 30 | D87: 1.98 | E87: 0.36 | F87: 11.88 | G87: 59.40 | H87: 0.05 | I87: 0.00 | J87: 0.00 | K87: 0.42 | L87: 8.70 | M87: 45.00 | N87: 14.10 | O87: 1.17
B88: Итого: | C88: 603 | D88: =D83+D84+D85+D86+D87 -> 18.69 | E88: =E83+E84+E85+E86+E87 -> 19.26 | F88: 76.76 | G88: 547.55 | H88: 0.32 | I88: 29.03 | J88: 54.26 | K88: 3.48 | L88: 185.53 | M88: 285.18 | N88: 91.67 | O88: 5.84 | P88: 0.00 | Q88: 0.00 | R88: 20%
P89: =P83*100/60 -> 0.00 | Q89: =Q83*100/60 -> 0.00
B90: 5 день
A91: № 15 Сбор.рец. На прод-ию для обуч. Во всех образ.учреж-Дели 2017 | B91: Сыр порционно | C91: 10 | D91: 2.63 | E91: 2.66 | F91: 0.00 | G91: 34.33 | H91: 0.00 | I91: 0.07 | J91: 21.00 | K91: 0.04 | L91: 100.00 | M91: 60.00 | N91: 5.50 | O91: 0.07
A92: №279,331 Сбор.рец. На прод-ию для питания детей в дошк образоват учрежд-Дели 2017 | B92: Тефтели мясные в сметанно-томатном соусе | C92: 60/40 | D92: 7.28 | E92: 11.94 | F92: 8.36 | G92: 123.99 | H92: 0.05 | I92: 0.28 | J92: 29.62 | K92: 0.42 | L92: 20.73 | M92: 80.20 | N92: 15.52 | O92: 0.64
A93: № 203 Сбор.рец. На прод-ию для обуч. Во всех образ.учреж-Дели 2017 | B93: Макаронные изделия отварные | C93: 200 | D93: 7.36 | E93: 6.02 | F93: 35.26 | G93: 224.60 | H93: 0.07 | I93: 0.00 | J93: 0.00 | K93: 1.29 | L93: 6.48 | M93: 49.56 | N93: 28.16 | O93: 1.47
A94: ТТК | B94: Напиток из свежих фруктов (75С) | C94: 200 | D94: 0.34 | E94: 0.17 | F94: 21.46 | G94: 103.50 | H94: 0.02 | I94: 3.17 | J94: 0.00 | K94: 0.13 | L94: 16.67 | M94: 7.05 | N94: 7.78 | O94: 0.88
A95: Хим.состав и калорийность российских продуктов питания,табл 6, стр 144 , 2012 Дели + | B95: Хлеб ржаной | C95: 40 | D95: 2.64 | E95: 0.48 | F95: 15.84 | G95: 79.20 | H95: 0.07 | I95: 0.00 | J95: 0.00 | K95: 0.56 | L95: 11.60 | M95: 60.00 | N95: 18.80 | O95: 1.56
B96: Итого: | C96: 550 | D96: 18.25 | E96: 19.27 | F96: 80.42 | G96: =SUM(G91:G95) -> 565.62 | H96: 0.22 | I96: 3.52 | J96: 50.62 | K96: 2.44 | L96: 155.47 | M96: 256.81 | N96: 75.76 | O96: 4.62 | P96: =SUM(P91:P94) -> 0.00 | Q96: =SUM(Q91:Q94) -> 0.00 | R96: 20%
B98: 6 день
A99: № 47 Сбор.рец. На прод-ию для обуч. Во всех образ.учреж-Дели -2017 | B99: Салат из свежей капусты с морковью | C99: 100 | D99: 1.75 | E99: 4.33 | F99: 8.62 | G99: 90.53 | H99: 0.03 | I99: 22.80 | J99: 0.00 | K99: 11.19 | L99: 33.29 | M99: 37.74 | N99: 20.12 | O99: 0.62
A100: № 234, 304 Сбор.рец. На прод-ию для обуч. Во всех образ.учреж-Дели 2015 | B100: Биточки рыбные с рисом отварным рассыпчатым с маслом сливочным | C100: 90/150/3 | D100: 16.80 | E100: 17.20 | F100: 53.36 | G100: 416.65 | H100: 0.12 | I100: 0.94 | J100: 58.26 | K100: 2.81 | L100: 83.86 | M100: 163.90 | N100: 44.18 | O100: 1.79 | P100: ='Меню младшие 1-4 кл'!P102+'Меню младшие 1-4 кл'!P103 -> 0.00 | Q100: ='Меню младшие 1-4 кл'!Q102+'Меню младшие 1-4 кл'!Q103 -> 0.00
A101: № 377 Сбор.рец. На прод-ию для обуч. Во всех образ.учреж-Дели 2017 | B101: Чай с сахаром, с лимоном | C101: 185/10/5 | D101: 0.11 | E101: 0.02 | F101: 10.15 | G101: 41.32 | H101: -0.00 | I101: 2.03 | J101: 0.00 | K101: 0.01 | L101: 13.25 | M101: 3.96 | N101: 2.16 | O101: 0.33
A102: Хим.состав и калорийность российских продуктов питания,табл 6, стр 144 , 2012 Дели + | B102: Хлеб ржаной | C102: 50 | D102: 3.30 | E102: 0.60 | F102: 19.80 | G102: 99.00 | H102: 0.09 | I102: 0.00 | J102: 0.00 | K102: 0.70 | L102: 14.50 | M102: 75.00 | N102: 23.50 | O102: 1.95
B103: Итого: | C103: 593 | D103: =SUM(D99:D102) -> 21.96 | E103: =SUM(E99:E102) -> 22.15 | F103: 91.94 | G103: 647.50 | H103: 0.23 | I103: 25.76 | J103: 58.26 | K103: 14.70 | L103: 144.90 | M103: 280.60 | N103: 89.96 | O103: 4.69 | P103: 0.00 | Q103: 0.00 | R103: 25%
B104: Итого за 6 дней 1 недели: | C104: =C60+C68+C77+C88+C103+C96 -> 3469 | D104: 120.37 | E104: 124.25 | F104: 516.30 | G104: 3646.63 | H104: 1.65 | I104: 78.42 | J104: 309.92 | K104: 31.87 | L104: 1084.86 | M104: 1949.24 | N104: 641.93 | O104: 36.11 | P104: =P60+P68+P77+P88+#REF!+P96 ->  | Q104: =Q60+Q68+Q77+Q88+#REF!+Q96 -> 
A111: № рецептуры | B111: Наименование блюд | C111: Выход,г | D111: Белки, г | E111: Жиры, г | F111: Углеводы, г | G111: Калорийность, ккал | H111: Витамин B1, мг | I111: Витамин С, мг | J111: Витамин А, мг | K111: Витамин Е, мг | L111: Ca, мг | M111: P, мг | N111: Mg, мг | O111: Fe, мг
B112: 2-ая неделя
B113: 1 день
A114: ТТК | B114: Сырники из творога с кашей пшенной молочной с маслом сливочным | C114: 60/220/3 | D114: 17.90 | E114: 21.21 | F114: 47.96 | G114: 442.60 | H114: 0.15 | I114: 1.21 | J114: 62.48 | K114: 1.83 | L114: 239.96 | M114: 305.69 | N114: 54.79 | O114: 1.28 | P114: ='Меню младшие 1-4 кл'!#REF!/0.9 ->  | Q114: ='Меню младшие 1-4 кл'!#REF!/0.9 -> 
A115: № 376 Сбор.рец. На прод-ию для обуч. Во всех образ.учреж-Дели 2017 | B115: Чай "Витаминный" с шиповником | C115: 185/10/5 | D115: 0.24 | E115: 0.09 | F115: 12.43 | G115: 54.20 | H115: 0.00 | I115: 50.03 | J115: 0.00 | K115: 0.19 | L115: 13.95 | M115: 3.65 | N115: 2.25 | O115: 0.42
A116: Хим.состав и калорийность российских продуктов питания табл 6 стр 134 , 2012 Дели + | B116: Хлеб пшеничный | C116: 30 | D116: 2.28 | E116: 0.24 | F116: 14.76 | G116: 70.50 | H116: 0.03 | I116: 0.00 | J116: 0.00 | K116: 0.33 | L116: 6.00 | M116: 19.50 | N116: 4.20 | O116: 0.33
A117: Хим.состав и калорийность российских продуктов питания,табл 6, стр 144 , 2012 Дели + | B117: Хлеб ржаной | C117: 40 | D117: 2.64 | E117: 0.48 | F117: 15.84 | G117: 79.20 | H117: 0.07 | I117: 0.00 | J117: 0.00 | K117: 0.56 | L117: 11.60 | M117: 60.00 | N117: 18.80 | O117: 1.56
B118: Итого: | C118: 553 | D118: =SUM(D114:D117) -> 23.06 | E118: =SUM(E114:E117) -> 22.02 | F118: 90.99 | G118: 646.50 | H118: 0.25 | I118: 51.24 | J118: 62.48 | K118: 2.91 | L118: 271.51 | M118: 388.84 | N118: 80.04 | O118: 3.59 | P118: =SUM(P114:P117) ->  | Q118: =SUM(Q114:Q117) ->  | R118: 25%
B120: 2 день
A121: Хим.состав и калорийность российских продуктов питания табл 9 стр 184 , 2012 Дели + | B121: Плоды и ягоды свежие (яблоки) | C121: 100 | D121: 0.4 | E121: 0.4 | F121: 9.8 | G121: 47 | H121: 0.03 | I121: 10 | K121: 0.2 | L121: 16 | M121: 11 | N121: 9 | O121: 2.2
A122: № 265 Сбор.рец. На прод-ию для обуч. Во всех образ.учреж-Дели -2017 | B122: Плов из говядины с рисовой крупой | C122: 50/200 | D122: 18.97 | E122: 23.12 | F122: 51.79 | G122: 509.80 | H122: 0.08 | I122: 2.31 | J122: 0.00 | K122: 5.25 | L122: 22.04 | M122: 285.70 | N122: 63.75 | O122: 4.13
A123: № 376 Сбор.рец. На прод-ию для обуч. Во всех образ.учреж-Дели 2017 | B123: Чай с сахаром | C123: 190/10 | D123: 0.07 | E123: 0.02 | F123: 10.01 | G123: 40.00 | H123: 0.00 | I123: 0.03 | J123: 0.00 | K123: 0.00 | L123: 10.95 | M123: 2.80 | N123: 1.40 | O123: 0.27
A124: Хим.состав и калорийность российских продуктов питания табл 6 стр 134 , 2012 Дели + | B124: Хлеб пшеничный | C124: 20 | D124: 1.52 | E124: 0.16 | F124: 9.84 | G124: 47.00 | H124: 0.02 | I124: 0.00 | J124: 0.00 | K124: 0.22 | L124: 4.00 | M124: 13.00 | N124: 2.80 | O124: 0.22
A125: Хим.состав и калорийность российских продуктов питания,табл 6, стр 144 , 2012 Дели + | B125: Хлеб ржаной | C125: 30 | D125: 1.98 | E125: 0.36 | F125: 11.88 | G125: 59.40 | H125: 0.05 | I125: 0.00 | J125: 0.00 | K125: 0.42 | L125: 8.70 | M125: 45.00 | N125: 14.10 | O125: 1.17
B126: Итого: | C126: 600 | D126: =D121+D122+D123+D124+D125 -> 22.94 | E126: =E121+E122+E123+E124+E125 -> 24.06 | F126: 93.32 | G126: 703.20 | H126: 0.18 | I126: 12.34 | J126: 0.00 | K126: 6.09 | L126: 61.69 | M126: 357.50 | N126: 91.05 | O126: 7.99 | P126: =P121+P122+P123+P124+P125 -> 0.00 | Q126: =Q121+Q122+Q123+Q124+Q125 -> 0.00 | R126: 25%
B128: 3 день
A129: № 229 Сбор.рец. На прод-ию для обуч. Во всех образ.учреж-Дели 2017 | B129: Рыба, тушенная в томате с овощами | C129: 50/50 | D129: 9.05 | E129: 6.09 | F129: 3.80 | G129: 105.00 | H129: 0.05 | I129: 3.73 | J129: 5.82 | K129: 2.52 | L129: 69.07 | M129: 162.19 | N129: 48.53 | O129: 0.85
A130: № 312 Сбор.рец. На прод-ию для обуч. Во всех образ.учреж-Дели -2017 | B130: Пюре картофельное | C130: 180 | D130: 3.68 | E130: 5.76 | F130: 24.53 | G130: 164.70 | H130: 0.17 | I130: 21.79 | J130: 0.00 | K130: 0.22 | L130: 44.37 | M130: 103.91 | N130: 33.30 | O130: 1.21 | P130: 1.2114
A131: №342 Сбор.рец. На прод-ию для обуч. Во всех образ.учреж-Дели 2017 | B131: Компот из свежих яблок (75С) | C131: 200 | D131: 0.16 | E131: 0.16 | F131: 17.90 | G131: 74.60 | H131: 0.01 | I131: 0.90 | J131: 0.00 | K131: 0.08 | L131: 13.88 | M131: 4.40 | N131: 5.14 | O131: 0.92
A132: Хим.состав и калорийность российских продуктов питания табл 6 стр 134 , 2012 Дели + | B132: Хлеб пшеничный | C132: 30 | D132: 2.28 | E132: 0.24 | F132: 14.76 | G132: 70.50 | H132: 0.03 | I132: 0.00 | J132: 0.00 | K132: 0.33 | L132: 6.00 | M132: 19.50 | N132: 4.20 | O132: 0.33
A133: Хим.состав и калорийность российских продуктов питания,табл 6, стр 144 , 2012 Дели + | B133: Хлеб ржаной | C133: 40 | D133: 2.64 | E133: 0.48 | F133: 15.84 | G133: 79.20 | H133: 0.07 | I133: 0.00 | J133: 0.00 | K133: 0.56 | L133: 11.60 | M133: 60.00 | N133: 18.80 | O133: 1.56
B134: Итого: | C134: 550 | D134: =D129+D130+D131+D132+D133 -> 17.81 | E134: =E129+E130+E130+E131+E132+E133 -> 18.49 | F134: =F129+F130+F131+F132+F133 -> 76.83 | G134: =G129+G130+G131+G132+G132+G133 -> 564.50 | H134: =H129+H130+H131+H132+H133 -> 0.33 | I134: 26.42 | J134: 5.82 | K134: 3.71 | L134: 144.92 | M134: 350.00 | N134: 109.97 | O134: 4.87 | P134: =P129+P130+P131+P132+P133 -> 1.21 | Q134: =Q129+Q130+Q131+Q132+Q133 -> 0.00 | R134: 25%
B143: 4 день
A144: ТТК | B144: Тефтели куриные с гречневой крупой в сметанно-томатном соусе | C144: 60/40 | D144: 3.17 | E144: 5.19 | F144: 9.85 | G144: 118.01 | H144: 0.07 | I144: 0.28 | J144: 29.62 | K144: 0.46 | L144: 61.68 | M144: 92.80 | N144: 26.56 | O144: 1.04
A145: № 203 Сбор.рец. На прод-ию для обуч. Во всех образ.учреж-Дели 2017 | B145: Макаронные изделия отварные | C145: 200 | D145: 7.36 | E145: 6.02 | F145: 35.26 | G145: 224.60 | H145: 0.07 | I145: 0.00 | J145: 0.00 | K145: 1.29 | L145: 6.48 | M145: 49.56 | N145: 28.16 | O145: 1.47
A146: № 376 Сбор.рец. На прод-ию для обуч. Во всех образ.учреж-Дели 2017 | B146: Чай "Витаминный" с шиповником | C146: 185/10/5 | D146: 0.24 | E146: 0.09 | F146: 12.43 | G146: 54.20 | H146: 0.00 | I146: 50.03 | J146: 0.00 | K146: 0.19 | L146: 13.95 | M146: 3.65 | N146: 2.25 | O146: 0.42
A147: Хим.состав и калорийность российских продуктов питания табл 6 стр 134 , 2012 Дели + | B147: Хлеб пшеничный | C147: 30 | D147: 2.28 | E147: 0.24 | F147: 14.76 | G147: 70.50 | H147: 0.03 | I147: 0.00 | J147: 0.00 | K147: 0.33 | L147: 6.00 | M147: 19.50 | N147: 4.20 | O147: 0.33
A148: Хим.состав и калорийность российских продуктов питания,табл 6, стр 144 , 2012 Дели + | B148: Хлеб ржаной | C148: 30 | D148: 1.98 | E148: 0.36 | F148: 11.88 | G148: 59.40 | H148: 0.05 | I148: 0.00 | J148: 0.00 | K148: 0.42 | L148: 8.70 | M148: 45.00 | N148: 14.10 | O148: 1.17
B149: Итого: | C149: 560 | D149: =D144+D144+D145+D146+D147+D148 -> 18.19 | E149: 17.48 | F149: =F145+F146+F147+F148 -> 74.33 | G149: =G144+G145+G146+G147+G148 -> 526.71 | H149: =H144+H144+H145+H146+H147+H148 -> 0.29 | I149: 50.58 | J149: 59.24 | K149: 3.14 | L149: 158.48 | M149: 303.32 | N149: 101.83 | O149: 5.48 | P149: =P144+P145+P146+P147+P148 -> 0.00 | Q149: =Q144+Q145+Q146+Q147+Q148 -> 0.00 | R149: 20%
B151: 5 день
A152: Хим.состав и калорийность российских продуктов питания табл 9 стр 184 , 2012 Дели + | B152: Плоды и ягоды свежие (яблоки) | C152: 100 | D152: 0.40 | E152: 0.40 | F152: 9.80 | G152: 47.00 | H152: 0.03 | I152: 10.00 | K152: 0.20 | L152: 16.00 | M152: 11.00 | N152: 9.00 | O152: 2.20
A153: № 143,241 Сбор.рец. На прод-ию для обуч. Во всех образ.учреж-Дели 2017 | B153: Овощи тушеные с мясом | C153: 50/150 | D153: 12.48 | E153: 15.68 | F153: 19.34 | G153: 271.50 | H153: 0.12 | I153: 18.77 | J153: 39.00 | K153: 4.67 | L153: 89.15 | M153: 148.63 | N153: 39.69 | O153: 2.23
A154: №349 Сбор.рец. На прод-ию для обуч. Во всех образ.учреж-Дели 2017 | B154: Компот из сухофруктов (75С) | C154: 200 | D154: 0.66 | E154: 0.09 | F154: 22.03 | G154: 92.80 | H154: 0.02 | I154: 0.73 | J154: 0.00 | K154: 0.51 | L154: 32.18 | M154: 23.44 | N154: 17.46 | O154: 0.67
A155: Хим.состав и калорийность российских продуктов питания табл 6 стр 134 , 2012 Дели + | B155: Хлеб пшеничный | C155: 30 | D155: 2.28 | E155: 0.24 | F155: 14.76 | G155: 70.50 | H155: 0.03 | I155: 0.00 | J155: 0.00 | K155: 0.33 | L155: 6.00 | M155: 19.50 | N155: 4.20 | O155: 0.33
A156: Хим.состав и калорийность российских продуктов питания,табл 6, стр 144 , 2012 Дели + | B156: Хлеб ржаной | C156: 30 | D156: 1.98 | E156: 0.36 | F156: 11.88 | G156: 59.40 | H156: 0.05 | I156: 0.00 | J156: 0.00 | K156: 0.42 | L156: 8.70 | M156: 45.00 | N156: 14.10 | O156: 1.17
B157: Итого: | C157: 560 | D157: =D152+D153+D154+D155+D156 -> 17.80 | E157: 17.77 | F157: =F152+F153+F154+F155+F156 -> 77.81 | G157: 541.20 | H157: 0.25 | I157: 29.49 | J157: 39.00 | K157: 6.13 | L157: 152.03 | M157: 247.57 | N157: 84.45 | O157: 6.59 | P157: =P152+P153+P154+P155+P156 -> 0.00 | Q157: =Q152+Q153+Q154+Q155+Q156 -> 0.00 | R157: 20%
B159: 6 день
A160: № 47 Сбор.рец. На прод-ию для обуч. Во всех образ.учреж-Дели -2017 | B160: Салат из свежей капусты с морковью | C160: 100 | D160: 1.75 | E160: 4.33 | F160: 8.62 | G160: 90.53 | H160: 0.03 | I160: 22.80 | J160: 0.00 | K160: 11.19 | L160: 33.29 | M160: 37.74 | N160: 20.12 | O160: 0.62 | P160: 1.03824
A161: ТТК | B161: Котлеты "Аппетитные" с кашей гречневой рассыпчатой с маслом сливочным | C161: 75/150/3 | D161: 15.16 | E161: 16.19 | F161: 44.63 | G161: 386.76 | H161: 0.26 | I161: 1.49 | J161: 71.98 | K161: 1.73 | L161: 41.59 | M161: 320.78 | N161: 154.60 | O161: 6.23
A162: № 377 Сбор.рец. На прод-ию для обуч. Во всех образ.учреж-Дели 2017 | B162: Чай с сахаром, с лимоном | C162: 185/10/5 | D162: 0.11 | E162: 0.02 | F162: 10.15 | G162: 41.32 | H162: -0.00 | I162: 2.03 | J162: 0.00 | K162: 0.01 | L162: 13.25 | M162: 3.96 | N162: 2.16 | O162: 0.33
A163: Хим.состав и калорийность российских продуктов питания,табл 6, стр 144 , 2012 Дели + | B163: Хлеб ржаной | C163: 25 | D163: 1.65 | E163: 0.30 | F163: 9.90 | G163: 49.50 | H163: 0.04 | I163: 0.00 | J163: 0.00 | K163: 0.35 | L163: 7.25 | M163: 37.50 | N163: 11.75 | O163: 0.98
B164: Итого: | C164: 553 | D164: =D160++D161+D162+D163 -> 18.67 | E164: 19.24 | F164: =F160++F161+F162+F163 -> 73.30 | G164: 568.11 | H164: 0.33 | I164: 26.32 | J164: 71.98 | K164: 13.27 | L164: 95.39 | M164: 399.98 | N164: 188.64 | O164: 8.16 | P164: =P160++P161+P162+P163 -> 1.04 | Q164: =Q160++Q161+Q162+Q163 -> 0.00 | R164: 20%
B165: Итого за 6 дней 2 недели: | C165: =C118+C126+C134+C149+C157+C164 -> 3376 | D165: 118.4674 | E165: 119.0676 | F165: 486.5711333 | G165: 3550.223333 | H165: 1.63875 | I165: 196.3934286 | J165: 238.5191667 | K165: 35.2503619 | L165: 884.0229762 | M165: 2047.206905 | N165: 655.9688214 | O165: 36.6777619
B166: ВСЕГО за 12 дней: | C166: =C60+C68+C77+C88+C103+C96+C118+C126+C134+C149+C157+C164 -> 6845 | D166: 238.8372333 | E166: 243.3126 | F166: 1002.867967 | G166: 7196.853333 | H166: 3.28785 | I166: 274.8084619 | J166: 548.4391667 | K166: 67.12252857 | L166: 1968.878143 | M166: 3996.444321 | N166: 1297.902155 | O166: 72.78979524
B167: В среднем на 1 учащегося в день: | C167: =C166/12 -> 570 | D167: =D166/12 -> 19.90 | E167: =E166/12 -> 20.28 | F167: 83.57 | G167: 599.74 | H167: 0.27 | I167: 22.90 | J167: 45.70 | K167: 5.59 | L167: 164.07 | M167: 333.04 | N167: 108.16 | O167: 6.07 | P167: 0 | Q167: 0 | R167: 20-25%

Sheet Замена 1 неделя
B2: Замена блюда
B4: День | C4: Прием пищи | D4: Заменяемое блюдо/ Вариант Замены | E4: по меню | F4: Выход,г | G4: Белки,г | H4: Жиры,г | I4: Углеводы,г | J4: ЭЦ,ккал
B5: День 1 (1 неделя) | C5: Горячий завтрак младшие классы (7-11 лет) | D5: Салат из моркови с яблоками | F5: 60 | G5: 0.64 | H5: 3.01 | I5: 5.11 | J5: 50.91
D6: Котлета из мяса птицы | F6: 90 | G6: 10.20 | H6: 12.93 | I6: 13.79 | J6: 198.00
D7: Макаронные изделия отварные с маслом сливочным | F7: 150/5 | G7: 5.70 | H7: 4.30 | I7: 31.99 | J7: 189.30
D8: Компот из сухофруктов (75С) | F8: 200 | G8: 0.66 | H8: 0.09 | I8: 22.03 | J8: 92.80
D9: Хлеб ржаной | F9: 30 | G9: 1.98 | H9: 0.36 | I9: 11.88 | J9: 59.40
D10: Итого: | F10: 535 | G10: =SUM(G5:G9) -> 19.18 | H10: =SUM(H5:H9) -> 20.69 | I10: =SUM(I5:I9) -> 84.80 | J10: =SUM(J5:J9) -> 590.41 | K10: 25%
D12: Салат из моркови с яблоками | E12: замена | F12: 60 | G12: 0.64 | H12: 3.01 | I12: 5.11 | J12: 50.91
D13: Сосиски отварные | F13: 90 | G13: 10.80 | H13: 13.50 | I13: 0.90 | J13: 187.00
D14: Макаронные изделия отварные | F14: 150/3 | G14: 5.68 | H14: 2.85 | I14: 31.96 | J14: 176.10
D15: Компот из сухофруктов (75С) (сахар 20г) | F15: 200 | G15: 0.66 | H15: 0.09 | I15: 32.93 | J15: 132.80
D16: Хлеб ржаной | F16: 30 | G16: 1.98 | H16: 0.36 | I16: 11.88 | J16: 59.40
D17: Итого: | F17: 533 | G17: =G12+G13+G14+G15+G16 -> 19.76 | H17: =H12+H13+H14+H15+H16 -> 19.81 | I17: =I12+I13+I14+I15+I16 -> 82.78 | J17: =J12+J13+J14+J15+J16 -> 606.21 | K17: 25%
B20: День | C20: Прием пищи | D20: Заменяемое блюдо/ Вариант Замены | E20: по меню | F20: Выход,г | G20: Белки,г | H20: Жиры,г | I20: Углеводы,г | J20: ЭЦ,ккал
B21: День 1 (1 неделя) | C21: Горячий завтрак старшие классы (12 лет и старше) | D21: Салат из моркови с яблоками | F21: 100 | G21: 1.06 | H21: 4.22 | I21: 8.52 | J21: 84.85
D22: Котлеты из мяса птицы с макаронными изделиями отварными, с маслом сливочным | F22: 90/150/5 | G22: 15.90 | H22: 19.23 | I22: 45.78 | J22: 387.30
D23: Компот из сухофруктов (75С) | F23: 200 | G23: 0.66 | H23: 0.09 | I23: 22.03 | J23: 92.80
D24: Хлеб пшеничный | F24: 25 | G24: 1.90 | H24: 0.20 | I24: 12.30 | J24: 58.75
D25: Хлеб ржаной | F25: 30 | G25: 1.98 | H25: 0.36 | I25: 11.88 | J25: 59.40
D26: Итого: | F26: 600 | G26: =SUM(G21:G25) -> 21.50 | H26: =SUM(H21:H25) -> 24.10 | I26: =SUM(I21:I25) -> 100.51 | J26: =SUM(J21:J25) -> 683.10 | K26: 25%
D28: Салат из моркови с яблоками | E28: замена | F28: 100 | G28: 1.06 | H28: 4.22 | I28: 8.52 | J28: 84.85
D29: Сосиска отварная с макаронными изделиями отварными | F29: 90/150/3 | G29: =G13+G14 -> 16.48 | H29: =H13+H14 -> 16.35 | I29: =I13+I14 -> 32.86 | J29: =J13+J14 -> 363.10
D30: Компот из сухофруктов (75С) | F30: 200 | G30: 0.66 | H30: 0.09 | I30: 22.03 | J30: 92.80
D31: Хлеб пшеничный | F31: 25 | G31: 1.90 | H31: 0.20 | I31: 12.30 | J31: 58.75
D32: Хлеб ржаной | F32: 30 | G32: 1.98 | H32: 0.36 | I32: 11.88 | J32: 59.40
D33: Итого: | F33: 598 | G33: =SUM(G28:G32) -> 22.08 | H33: 21.92 | I33: =I28+I28+I29+I30+I31+I32 -> 96.11 | J33: =SUM(J28:J32) -> 658.90 | K33: 25%

Sheet Замена 2 неделя
B2: Замена блюда
B6: День | C6: Прием пищи | D6: Заменяемое блюдо/ Вариант Замены | E6: по меню | F6: Выход,г | G6: Белки,г | H6: Жиры,г | I6: Углеводы,г | J6: ЭЦ,ккал
B7: День 1 (2 неделя) | C7: Горячий завтрак младшие классы (7-11 лет) | D7: Сырники из творога с кашей пшенной молочной с маслом сливочным | F7: 60/180/5 | G7: 16.02 | H7: 18.13 | I7: 42.98 | J7: 386.40
D8: Чай "Витаминный" с шиповником | F8: 185/10/5 | G8: 0.24 | H8: 0.09 | I8: 12.43 | J8: 54.20
D9: Хлеб пшеничный | F9: 25 | G9: 1.90 | H9: 0.20 | I9: 12.30 | J9: 58.75
D10: Хлеб ржаной | F10: 30 | G10: 1.98 | H10: 0.36 | I10: 11.88 | J10: 59.40
D11: Итого: | F11: 500 | G11: 20.14 | H11: 18.78 | I11: 79.59 | J11: 558.75 | K11: 25%
D13: Сосиски отварные | E13: замена | F13: 90 | G13: 10.80 | H13: 13.50 | I13: 0.90 | J13: 169.30
D14: Каша пшенная молочная с маслом сливочным | F14: 180/3 | G14: 4.09 | H14: 5.08 | I14: 42.26 | J14: 216.90
D15: Чай "Витаминный" с шиповником | F15: 185/10/5 | G15: 0.24 | H15: 0.09 | I15: 12.43 | J15: 54.20
D16: Хлеб пшеничный | F16: 25 | G16: 1.90 | H16: 0.20 | I16: 12.30 | J16: 58.75
D17: Хлеб ржаной | F17: 30 | G17: 1.98 | H17: 0.36 | I17: 11.88 | J17: 59.40
D18: Итого: | F18: 528 | G18: =SUM(G13:G17) -> 19.00 | H18: =SUM(H13:H17) -> 19.23 | I18: =SUM(I13:I17) -> 79.77 | J18: =SUM(J13:J17) -> 558.55 | K18: 25%
B20: День | C20: Прием пищи | D20: Заменяемое блюдо/ Вариант Замены | E20: по меню | F20: Выход,г | G20: Белки,г | H20: Жиры,г | I20: Углеводы,г | J20: ЭЦ,ккал
B21: День 1 (2 неделя) | C21: Горячий завтрак старшие классы (12 лет и старше) | D21: Сырники из творога с кашей пшенной молочной с маслом сливочным | F21: 60/220/3 | G21: 17.90 | H21: 21.21 | I21: 47.96 | J21: 442.60
D22: Чай "Витаминный" с шиповником | F22: 185/10/5 | G22: 0.24 | H22: 0.09 | I22: 12.43 | J22: 54.20
D23: Хлеб пшеничный | F23: 30 | G23: 2.28 | H23: 0.24 | I23: 14.76 | J23: 70.50
D24: Хлеб ржаной | F24: 40 | G24: 2.64 | H24: 0.48 | I24: 15.84 | J24: 79.20
D25: Итого: | F25: 553 | G25: 23.06 | H25: 22.02 | I25: 90.99 | J25: 646.50 | K25: 25%
D27: Сосиски отварные | F27: 100 | G27: 12.00 | H27: 15.00 | I27: 0.90 | J27: 187.00
D28: Каша пшенная молочная | F28: 200 | G28: 7.47 | H28: 8.09 | I28: 36.98 | J28: 252.00
D29: Чай "Витаминный" с шиповником | F29: 185/10/5 | G29: 0.24 | H29: 0.09 | I29: 12.43 | J29: 54.20
D30: Хлеб пшеничный | F30: 20 | G30: 1.52 | H30: 0.16 | I30: 9.84 | J30: 47.00
D31: Хлеб ржаной | F31: 30 | G31: 1.98 | H31: 0.36 | I31: 11.88 | J31: 59.40
D32: Итого: | F32: 570 | G32: =G27+G28+G29+G30+G31 -> 23.21 | H32: =H27+H28+H29+H30+H31 -> 23.70 | I32: =I27+I28+I29+I29+I30+I30+I31 -> 94.29 | J32: =J27+J28+J29+J30+J30+J31 -> 646.60 | K32: 25%

Sheet Меню сокращенное
A1: ТИПОВОЕ ДВУХНЕДЕЛЬНОЕ МЕНЮ ДЛЯ ОБУЧАЮЩИХСЯ В ОБЩЕОБРАЗОВАТЕЛЬНЫХ ОРГАНИЗАЦИЯХ (сезон осенне-зимний)
A3: ГОРЯЧИЙ ЗАВТРАК | M3: Мл.кл 66,76 рублей / Ст.кл 66.76 руб.
A4: 1-ая неделя
A5: 1 день | D5: 2 день | G5: 3 день | J5: 4 день | M5: 5 день | P5: 6 день
A6: Наименование блюд | B6: Выход,г | D6: Наименование блюд | E6: Выход,г | G6: Наименование блюд | H6: Выход,г | J6: Наименование блюд | K6: Выход,г | M6: Наименование блюд | N6: Выход,г | P6: Наименование блюд | Q6: Выход,г
B7: 7-11 лет | C7: 12 лет и ст | E7: 7-11 лет | F7: 12 лет и ст | H7: 7-11 лет | I7: 12 лет и ст | K7: 7-11 лет | L7: 12 лет и ст | N7: 7-11 лет | O7: 12 лет и ст | Q7: 7-11 лет
A8: Салат из моркови с яблоками | B8: 60 | C8: 100 | D8: Плоды и ягоды свежие (яблоки) | E8: 100 | F8: 100 | G8: Сыр порционно | H8: 10 | I8: 10 | J8: Свекла отварная дольками | K8: 60 | L8: 100 | M8: Сыр порционно | N8: 15 | O8: 10 | P8: Салат из свежей капусты с морковью | Q8: 80 | R8: 100
A9: Котлета из мяса птицы ВОЗМОЖНА ЗАМЕНА НА СОСИСКИ | B9: 90 | C9: 90 | D9: Сырник из творога мл.кл | E9: 60 | F9: 60 | G9: Гуляш из отварной говядины | H9: 50/50 | I9: 50/50 | J9: Котлета из мяса птицы | K9: 90 | L9: 90 | M9: Тефтели мясные в сметанно-томатном соусе | N9: 60/40 | O9: 60/40 | P9: Биточки рыбные(минтай) мл.кл./ Биточки рыбные ст.кл. | Q9: 90 | R9: 90
A10: Макаронные изделия с маслом сливочным | B10: 150/5 | C10: 150/5 | D10: Каша вязкая "Дружба" молочная с маслом сливочным | E10: 150/5 | F10: 180/3 | G10: Каша гречневая рассыпчатая | H10: 150 | I10: 180 | J10: Пюре картофельное с маслом сливочным | K10: 150/3 | L10: 150/3 | M10: Макаронные изделия отварные с маслом сливочным мл.кл. /Макаронные изделия отварные ст.кл. | N10: 180/5 | O10: 200 | P10: Рис отварный рассыпчатый с маслом сливочным | Q10: 150/3 | R10: 150/3
A11: Компот из сухофруктов (75С) (сахара 10г) | B11: 200 | C11: 200 | D11: Чай с сахаром | E11: 190/10 | F11: 190/10 | G11: Чай с сахаром,с лимоном | H11: 185/10/5 | I11: 185/10/5 | J11: Чай с сахаром,с яблоком | K11: 180/10/10 | L11: 180/10/10 | M11: Напиток из свежих фруктов (75С) (сахар 20г) | N11: 200 | O11: 200 | P11: Чай с сахаром,с лимоном | Q11: 185/10/5 | R11: 185/10/5
A12: Хлеб пшеничный | B12: нет | C12: 25 | D12: Хлеб пшеничный | E12: нет | F12: нет | G12: Хлеб пшеничный | H12: нет | I12: 20 | J12: Хлеб пшеничный | K12: 30 | L12: 20 | M12: Хлеб пшеничный | N12: 45 | O12: нет
A13: Хлеб ржаной | B13: 30 | C13: 30 | D13: Хлеб ржаной | E13: 30 | F13: 30 | G13: Хлеб ржаной | H13: 50 | I13: 40 | J13: Хлеб ржаной | K13: 40 | L13: 30 | M13: Хлеб ржаной | N13: нет | O13: 40 | P13: Хлеб ржаной | Q13: 30 | R13: 50
A14: Итого: | B14: 535 | C14: 600 | D14: Итого: | E14: 545 | F14: 573 | G14: Итого: | H14: 510 | I14: 550 | J14: Итого: | K14: 573 | L14: 603 | M14: Итого: | N14: 545 | O14: 550 | P14: Итого: | Q14: 553 | R14: 593
A15: Белки,г | B15: 19.180 | C15: 21.500 | E15: 16.100 | F15: 18.150 | H15: 20.200 | I15: 21.820 | K15: 19.390 | L15: 18.690 | N15: 20.090 | O15: 18.250 | Q15: 19.940 | R15: 21.960
A16: Жиры,г | B16: 20.690 | C16: 24.100 | E16: 16.070 | F16: 17.610 | H16: 20.360 | I16: 21.860 | K16: 20.020 | L16: 19.260 | N16: 20.080 | O16: 19.270 | Q16: 20.180 | R16: 22.150
A17: Углеводы,г | B17: 84.800 | C17: 100.510 | E17: 64.010 | F17: 72.880 | H17: 79.970 | I17: 93.790 | K17: 81.720 | L17: 76.760 | N17: 83.920 | O17: 80.420 | Q17: 80.570 | R17: 91.940
A18: ЭЦ,ккал | B18: 590.410 | C18: 683.100 | E18: 477.300 | F18: 523.200 | H18: 609.650 | I18: 679.650 | K18: 571.650 | L18: 547.550 | N18: 560.840 | O18: 565.620 | Q18: 565.690 | R18: 647.500
A20: 2-ая неделя
A21: 1 день | D21: 2 день | G21: 3 день | J21: 4 день | M21: 5 день | P21: 6 день
A22: Наименование блюд | B22: Выход,г | D22: Наименование блюд | E22: Выход,г | G22: Наименование блюд | H22: Выход,г | J22: Наименование блюд | K22: Выход,г | M22: Наименование блюд | N22: Выход,г | P22: Наименование блюд | Q22: Выход,г
B23: 7-11 лет | C23: 12 лет и ст | E23: 7-11 лет | F23: 12 лет и ст | H23: 7-11 лет | I23: 12 лет и ст | K23: 7-11 лет | L23: 12 лет и ст | N23: 7-11 лет | O23: 12 лет и ст | Q23: 7-11 лет | R23: 12 лет и ст
D24: Плоды и ягоды свежие (яблоки) | E24: 100 | F24: 100 | G24: Салат из отварной свеклы | H24: 60 | I24: нет | M24: Плоды и ягоды свежие (яблоки) | N24: 100 | O24: 100 | P24: Салат из свежей капусты с морковью | Q24: 80 | R24: 100
A25: Сырник из творога мл.кл /ВОЗМОЖНА ЗАМЕНА НА СОСИСКИ | B25: 60 | C25: 60 | D25: Плов из говядины с рисовой крупой | E25: 50/150 | F25: 50/200 | G25: Рыба (горбуша), тушеная в томате с овощами | H25: 50/50 | I25: 50/50 | J25: Тефтели куриные с гречневой крупой сметанно-томатном соусе | K25: 60/40 | L25: 60/40 | M25: Овощи тушеные с мясом | N25: 50/150 | O25: 50/150 | P25: Котлеты "Аппетитные" | Q25: 90 | R25: 75
A26: Каша пшенная молочная с маслом сливочным мл.кл. /Каша пшенная молочная ст.кл. | B26: 180/5 | C26: 220/3 | G26: Пюре картофельное с маслом сливочным /Пюре картофельное ст.кл | H26: 150/3 | I26: 180 | J26: Макаронные изделия отварные с маслом сливочным мл.кл. /макаронные изделия отварные ст.кл. | K26: 180/3 | L26: 200 | P26: Каша гречневая рассыпчатая с маслом сливочным | Q26: 150/3 | R26: 150/3
A27: Чай "Витаминный" с шиповником | B27: 185/10/5 | C27: 185/10/5 | D27: Чай с сахаром | E27: 190/10 | F27: 190/10 | G27: Компот из свежих яблок (75С)(сахара 10г) | H27: 200 | I27: 200 | J27: Какао с молоком (сахар 10г) /Чай "Витаминный" с шиповником ст.кл. | K27: 200 | L27: 185/10/5 | M27: Компот из сухофруктов (75С) (сахара 10г) | N27: 200 | O27: 200 | P27: Чай с сахаром,с лимоном | Q27: 185/10/5 | R27: 185/10/5
A28: Хлеб пшеничный | B28: 25 | C28: 30 | D28: Хлеб пшеничный | E28: 25 | F28: 20 | G28: Хлеб пшеничный | H28: 35 | I28: 30 | J28: Хлеб пшеничный | K28: 30 | L28: 30 | M28: Хлеб пшеничный | N28: 30 | O28: 30 | P28: Хлеб пшеничный | Q28: 30 | R28: нет
A29: Хлеб ржаной | B29: 30 | C29: 40 | D29: Хлеб ржаной | E29: 20 | F29: 30 | G29: Хлеб ржаной | H29: нет | I29: 40 | J29: Хлеб ржаной | K29: нет | L29: 30 | M29: Хлеб ржаной | N29: нет | O29: 30 | P29: Хлеб ржаной | Q29: нет | R29: 25
A30: Итого: | B30: 500 | C30: 553 | D30: Итого: | E30: 545 | F30: 600 | G30: Итого: | H30: 548 | I30: 550 | J30: Итого: | K30: 513 | L30: 560 | M30: Итого: | N30: 530 | O30: 560 | P30: Итого: | Q30: 553 | R30: 553
A31: Белки,г | B31: 20.140 | C31: 23.060 | E31: 19.640 | F31: 22.940 | H31: 15.790 | I31: 17.810 | K31: 16.170 | L31: 18.190 | N31: 15.820 | O31: 17.800 | Q31: 20.140 | R31: 18.670
A32: Жиры,г | B32: 18.780 | C32: 22.020 | E32: 20.410 | F32: 24.060 | H32: 16.390 | I32: 18.490 | K32: 16.570 | L32: 17.480 | N32: 16.410 | O32: 17.770 | Q32: 19.480 | R32: 19.240
A33: Углеводы,г | B33: 79.590 | C33: 90.990 | E33: 79.780 | F33: 93.320 | H33: 64.340 | I33: 76.830 | K33: 63.980 | L33: 74.330 | N33: 65.930 | O33: 77.810 | Q33: 82.990 | R33: 73.300
A34: ЭЦ,ккал | B34: 558.750 | C34: 646.500 | E34: 593.770 | F34: 703.200 | H34: 467.980 | I34: 564.500 | K34: 489.050 | L34: 526.710 | N34: 481.800 | O34: 541.200 | Q34: 608.140 | R34: 568.110
A36: * Замена 1 день 1 и 2 недели котлет из мяса птицы и сырников производится строго по таблице замены приложенной к меню.
A37: * В 4 день 1 недели с 15.11.2024 тефтели мясные в сметанно-томатном соусе и макаронные изделия отварные с маслом сливочным заменяются на пельмени отварные с маслом сливочным
